Cogmind - Beta 13 @@@ ROGUE MODE // 2024.04.01 @ 15:36:30 // Halloween2020/ForbiddenLore Player: Mogwok Wargfriend Result: Destroyed by QQ-DHT(R) with Subdweller Machine Gun Performance ------------- Evolutions (0) 0 Regions Visited (3) 600 Robots Destroyed (31) 155 Value Destroyed (685) 685 Prototype IDs (0) 0 Alien Tech Used (0) 0 Bonus (-23) -23 TOTAL SCORE: 1417 Bonus ------- Friendly Fire -23 Cogmind --------- Core Integrity 0/250 Matter 286/300 Energy 245/250 System Corruption 8% Temperature Cool (0) Movement Rolling (110) Location -10/Subcaves Parts ------- > --- POWER (1) -------- Ion Engine > --- PROPULSION (2) --- Subdweller Monowheel Subdweller Monowheel > --- UTILITY (2) ------ Disposable Heat Sink Subdweller Optics > --- WEAPON (2) ------- Subdweller Machine Gun Makeshift Spear > --- INVENTORY (5) ---- Subdweller Power Source Subdweller Power Source Subdweller Monowheel Barrage Gun Peak State ------------ > --- POWER ------------ Subdweller Power Source > --- PROPULSION ------- Aluminum Leg Aluminum Leg > --- UTILITY ---------- Medium Storage Unit Improved Trap Extractor > --- WEAPON ----------- Subdweller Laser Subdweller Machine Gun > --- INVENTORY -------- Ion Engine Aluminum Leg Wheel Improved Heat Sink Medium Laser Ion Cannon Battle Rifle Improved Datajack Mining Laser Makeshift Spear [Rating: 15] Favorites ----------- Power Ion Engine Engine Ion Engine Propulsion Aluminum Leg Leg Aluminum Leg Wheel Wheel Utility Medium Storage Unit Device Improved Trap Extractor Storage Medium Storage Unit Processor Signal Interpreter Protection Scrap Shield Weapon Assault Rifle Energy Gun Medium Laser Ballistic Gun Assault Rifle Piercing Weapon Makeshift Spear Special Melee Weapon Improved Datajack Build | -11 -10 -10 -10 ------- Run | Yrd Mat Min Sub Slots Evolved . | . . . . Power . | . . . . Propulsion . | . . . . Utility . | . . . . Weapon . | . . . . Parts Attached 50 | 7 13 5 25 Power 5 | 1 1 1 2 Engine 5 | 1 1 1 2 Core . | . . . . Reactor . | . . . . Propulsion 16 | 3 5 1 7 Treads . | . . . . Leg 9 | 1 5 1 2 Wheel 7 | 2 . . 5 Hover . | . . . . Flight . | . . . . Utility 12 | 1 4 1 6 Device 4 | . . 1 3 Storage 5 | 1 3 . 1 Processor 1 | . 1 . . Hackware . | . . . . Protection 2 | . . . 2 Artifact . | . . . . Weapon 17 | 2 3 2 10 Energy Gun 3 | . 1 1 1 Energy Cannon . | . . . . Ballistic Gun 10 | 2 2 . 6 Ballistic Cannon . | . . . . Launcher . | . . . . Special Weapon . | . . . . Impact Weapon . | . . . . Slashing Weapon . | . . . . Piercing Weapon 3 | . . . 3 Special Melee Weapon 1 | . . 1 . Unidentified Prototypes . | . . . . Corrupted Parts 2 | . . 2 . System Corruption 7 | . . 7 . Parts Lost 7 | . 1 2 4 Power 1 | . . 1 . Propulsion 3 | . . 1 2 Utility 1 | . . . 1 Weapon 2 | . 1 . 1 Highest Loss Streak 3 | . 1 2 3 To Critical Strikes . | . . . . Average Slot Usage (%) 95 | . 98 99 89 Engine 13 | . 14 14 13 Leg 19 | . 21 27 9 Wheel 8 | . 6 . 18 Device 5 | . . 12 6 Storage 10 | . 13 14 4 Processor 5 | . 12 1 . Protection 2 | . . . 7 Energy Gun 7 | . 2 8 12 Ballistic Gun 18 | . 25 14 13 Special Melee Weapon 1 | . . 5 . Naked Turns . | . . . . Heaviest Build 31 | 13 19 22 31 Greatest Support 40 | 26 26 20 40 Greatest Overweight (x) 3 | 2 1 2 3 Average Overweight (x) . | . . . . Largest Inventory Capacity 20 | 8 20 10 10 Average Capacity 8 | 6 9 10 6 Most Carried 10 | 6 10 10 10 Average Carried 8 | 2 8 9 6 Final Capacity 10 | 8 10 10 5 Final Carried 10 | 6 10 10 4 Class Distribution -------------------- 75% | Mutant 18% | Subdweller-Mutant 5% | Scavenger-Mutant Dominant Class ---------------- Mutant | -10/Materials Mutant | -10/Mines Subdweller-Mutant | -10/Subcaves Resources | -11 -10 -10 -10 ----------- Run | Yrd Mat Min Sub Matter Collected 1272 | 208 461 183 420 Remotely . | . . . . Salvage Created 1242 | . 558 426 258 Parts 72 | . 29 28 15 Haulers Intercepted 1 | . 1 . . Recyclers Shooed 7 | . 3 4 . Parts Field Recycled . | . . . . Retrieved Matter . | . . . . Parts Self-Destructed 8 | . . . 8 Prevented . | . . . . Kills | -11 -10 -10 -10 ------- Run | Yrd Mat Min Sub Combat Hostiles Destroyed 19 | . 8 5 6 Melee 1 | . . . 1 Guns 18 | . 8 5 5 Classes Destroyed 8 | . 6 1 1 Tunneler 3 | . . 3 . Hauler 1 | . 1 . . Recycler 5 | . 2 3 . Mechanic 1 | . 1 . . Watcher 2 | . 2 . . Swarmer 6 | . 3 3 . Grunt 7 | . 5 2 . Subdweller 6 | . . . 6 Best Kill Streak 4 | . 2 4 2 Combat Bots Only 3 | . 2 3 2 Max Kills in Single Turn 2 | . 1 2 1 Gunslinging 1 | . . 1 . Exploded . | . . . . Melee 1 | . . . 1 Uniques/NPCs Destroyed . | . . . . Combat | -11 -10 -10 -10 -------- Run | Yrd Mat Min Sub Hostile Shots Fired 132 | . 78 15 39 Missed 28 | . 19 3 6 Damage Taken 1586 | . 636 195 755 Core 263 | . 164 16 83 Absorbed by Shields . | . . . . Regen/Repaired (Parts) 116 | . 116 . . Core Remaining (%) 100 | 100 . . . Volleys Fired 137 | . 69 29 39 Largest 2 | . 2 2 2 Hottest 90 | . 70 70 90 Shots Fired 256 | . 137 44 75 Gun 256 | . 137 44 75 Cannon . | . . . . Launcher . | . . . . Special . | . . . . Kinetic 213 | . 136 30 47 Thermal 43 | . 1 14 28 Explosive . | . . . . Electromagnetic . | . . . . Robot Hit Streak 18 | . 9 9 18 Robot Miss Streak 6 | . 6 2 3 Penetration Max . | . . . . Secondary Targets 3 | . . 2 1 Max Gunslinging Chain 1 | . . 1 1 Shots Hit Robots 155 | . 76 32 47 Core Hits 56 | . 30 16 10 Critical Kills . | . . . . Critical Parts Destroyed 2 | . 1 . 1 Critical Strikes 3 | . 1 . 2 Destroy 2 | . 1 . 1 Impale 1 | . . . 1 Melee Attacks 12 | . . . 12 Impact . | . . . . Slashing . | . . . . Piercing 12 | . . . 12 Sneak Attacks . | . . . . Combat Hostiles . | . . . . Follow-up Attacks . | . . . . Damage Inflicted 1840 | . 765 426 649 Guns 1744 | . 765 426 553 Cannons . | . . . . Explosions . | . . . . Melee 96 | . . . 96 Ramming . | . . . . Kinetic 1451 | . 765 274 412 Thermal 293 | . . 152 141 Explosive . | . . . . Electromagnetic . | . . . . Impact . | . . . . Slashing . | . . . . Piercing 96 | . . . 96 Highest Corruption 8 | . 1 8 8 Average Corruption 5 | . 1 7 8 Corruption Purged . | . . . . Corruption Blocked . | . . . . Effects 69 | . 7 24 38 Message Errors 18 | . . 7 11 Matter Fused 13 | . . 7 6 Heat Flow Errors 8 | . 1 2 5 Energy Discharges 9 | . 1 2 6 Data Loss (minor) 10 | . 2 4 4 Data Loss (major) 3 | . 2 . 1 Misfires 6 | . . 1 5 Alerts 1 | . . 1 . Weapon Failures 1 | . 1 . . Overload Shots . | . . . . Overflow Damage . | . . . . Projectiles . | . . . . Explosions . | . . . . Melee . | . . . . Knockbacks . | . . . . Impact . | . . . . Kinetic . | . . . . Secondary . | . . . . Self-Inflicted Damage . | . . . . Shots . | . . . . Rammed . | . . . . Targets Rammed . | . . . . Kicked . | . . . . Crushed . | . . . . Highest Temperature 285 | . 226 261 285 Average Temperature 62 | . 48 53 82 Received Heat Transfer 722 | . 237 54 431 Siege Activations . | . . . . Robots Corrupted . | . . . . Combat Hostiles . | . . . . Parts Fried . | . . . . Impact Corruptions . | . . . . Robots Melted . | . . . . Combat Hostiles . | . . . . Parts Melted 1 | . . . 1 Heat Transferred 729 | . . 444 285 Parts Sabotaged . | . . . . Parts Stolen . | . . . . Parts Stripped . | . . . . Power Chain Reactions . | . . . . Alert | -11 -10 -10 -10 ------- Run | Yrd Mat Min Sub Peak Influence 137 | . 137 110 . Initial 1 | . . 1 . Average 30 | . 40 17 . Maximum Alert Level . | . . . . Low Security (%) 100 | 100 100 100 . Level 1 . | . . . . Level 2 . | . . . . Level 3 . | . . . . Level 4 . | . . . . Level 5 . | . . . . High Security . | . . . . Max Security . | . . . . Squads Dispatched 1 | . 1 . . Investigation 1 | . 1 . . Extermination . | . . . . Reinforcement . | . . . . Assault . | . . . . Garrison . | . . . . Intercept . | . . . . Searches Triggered . | . . . . Construction Impeded . | . . . . Haulers Reinforced . | . . . . Active Scanning Responses . | . . . . Cargo Convoy Interrupts . | . . . . Stealth | -11 -10 -10 -10 --------- Run | Yrd Mat Min Sub Distress Signals 1 | . 1 . . Communications Jammed . | . . . . Distress Signals . | . . . . Times Spotted 32 | . 19 5 8 Peak Tracking Total 4 | . 4 3 2 Tactical Retreats 2 | . 2 . . Traps | -11 -10 -10 -10 ------- Run | Yrd Mat Min Sub Traps Triggered 6 | . 4 1 1 Indirectly . | . . . . Trap Hack Attempts 9 | . . 9 . Triggered . | . . . . Disarmed . | . . . . Reprogrammed 2 | . . 2 . Reused . | . . . . Traps Extracted 2 | . . 2 . Installed 2 | . . 2 . Triggered . | . . . . Most Traps Carried 1 | . . 1 . Machines | -11 -10 -10 -10 ---------- Run | Yrd Mat Min Sub Machines Disabled 1 | . 1 . . Max in Single Turn 1 | . 1 . . Machines Repaired . | . . . . Machines Dismantled . | . . . . Machines Sabotaged . | . . . . Overloaded Fab Kills . | . . . . Hacking | -11 -10 -10 -10 --------- Run | Yrd Mat Min Sub Machines Accessed 11 | . 10 1 . Terminals 8 | . 8 . . Fabricators . | . . . . Repair Stations 1 | . 1 . . Recycling Units 1 | . 1 . . Scanalyzers . | . . . . Garrison Access . | . . . . Total Hacks 31 | . 30 1 . Successful 18 | . 17 1 . Failed 13 | . 13 . . Catastrophic 1 | . 1 . . Database Lockouts . | . . . . Manual 24 | . 24 . . Terminals 22 | . 22 . . Fabricators . | . . . . Repair Stations 5 | . 5 . . Recycling Units 3 | . 3 . . Scanalyzers . | . . . . Garrison Access . | . . . . Terminal Hacks 8 | . 7 1 . Record 1 | . 1 . . Robot Analysis 4 | . 4 . . Open Door 1 | . . 1 . Terminal Index 1 | . 1 . . Locate Traps 1 | . 1 . . Fabricator Hacks . | . . . . Repair Station Hacks 4 | . 4 . . Scan Component 2 | . 2 . . Repair 2 | . 2 . . Recycling Unit Hacks 1 | . 1 . . Report Inventory 1 | . 1 . . Scanalyzer . | . . . . Garrison Access Hacks . | . . . . Unauthorized Hacks 5 | . 5 . . Terminals 3 | . 3 . . Track 1 | . 1 . . Assimilate 1 | . 1 . . Operators 1 | . 1 . . Fabricators . | . . . . Repair Stations . | . . . . Recycling Units 2 | . 2 . . Reject 1 | . 1 . . Mask 1 | . 1 . . Scanalyzers . | . . . . Garrison Access . | . . . . Data Cores Recovered . | . . . . Used . | . . . . Hacking Detections 7 | . 7 . . Full Trace Events 1 | . 1 . . Feedback Events . | . . . . Feedback Blocked . | . . . . Robot Schematics Acquired . | . . . . Robots Built . | . . . . Authchips . | . . . . Time . | . . . . Total Robot Build Rating . | . . . . Part Schematics Acquired . | . . . . Parts Built . | . . . . Authchips . | . . . . Time . | . . . . Total Part Build Rating . | . . . . Parts Repaired 2 | . 2 . . Time 52 | . 52 . . Parts Recycled . | . . . . Recycled Matter . | . . . . Retrieved Matter . | . . . . Retrieved Components . | . . . . Parts Scanalyzed . | . . . . Part Schematics Acquired . | . . . . Parts Damaged . | . . . . Bothacking | -11 -10 -10 -10 ------------ Run | Yrd Mat Min Sub Used RIF Installer . | . . . . Robots Hacked . | . . . . Non-combat . | . . . . Combat . | . . . . Robot Hacks Applied . | . . . . Relay Couplers Released . | . . . . Fabnet Peak Effective % . | . . . . Robots Rewired . | . . . . Allies Hacked . | . . . . Hacks Repelled . | . . . . Allies | -11 -10 -10 -10 -------- Run | Yrd Mat Min Sub Total Allies 1 | . . 1 . Largest Group 1 | . . 1 1 Highest-Rated Group 31 | . . 31 31 Highest-Rated Ally 31 | . . 31 31 Total Orders . | . . . . Ally Attacks 5 | . . . 5 Total Damage 105 | . . . 105 Kills . | . . . . Allies Corrupted . | . . . . Allies Melted . | . . . . Intel | -11 -10 -10 -10 ------- Run | Yrd Mat Min Sub Robot Analysis Total 4 | . 4 . . Derelict Logs Recovered 2 | . . 2 . Drone Launches . | . . . . Drone Recoveries . | . . . . Exploration | -11 -10 -10 -10 ------------- Run | Yrd Mat Min Sub Turns Passed 3798 | 75 1515 965 1243 Spaces Moved 2368 | 63 1015 419 871 Core 26 | 26 . . . Treads . | . . . . Legs 1377 | . 776 419 182 Wheels 965 | 37 239 . 689 Hover . | . . . . Flight . | . . . . Fastest Speed 50 | 50 90 120 95 Average Speed 126 | 95 113 183 116 Slowest Speed 260 | 150 190 260 190 Overloaded Moves . | . . . . Propulsion Burnouts . | . . . . Robots Hopped . | . . . . Cave-ins Triggered . | . . . . Exploration Rate (%) 48 | 5 98 54 36 Regions Visited 3 Branch Regions 2 Pre-discovered Areas 1 | . . . 1 Known Exits Taken 1 | . 1 . . Unknown Exits Taken 2 | 1 . 1 . Scrap Searched 12 | . . 2 10 Spaces Dug . | . . . . Terrain Destroyed . | . . . . Melee . | . . . . Projectile . | . . . . AOE . | . . . . Terrain Rammed . | . . . . Walls Destroyed . | . . . . Machines Disabled . | . . . . Actions | -11 -10 -10 -10 --------- Run | Yrd Mat Min Sub Total 2949 | 75 1265 576 1033 Wait 264 | . 130 102 32 Move 2365 | 62 1014 418 871 Hop . | . . . . Pick Up 46 | 5 21 5 15 Fast Attach 27 | 7 7 2 11 Attach 12 | . 3 2 7 Detach 11 | 1 1 2 7 Swap 11 | . 3 1 7 Drop 51 | . 17 4 30 Fire 137 | . 69 29 39 Melee 12 | . . . 12 Ram . | . . . . Kick . | . . . . Crush . | . . . . Escape Stasis . | . . . . Rewire . | . . . . Trap 11 | . . 11 . Miscellaneous 2 | . . . 2 Route ------- -11/Scrapyard -10/Materials (discovered 4 exits: *Mat x3 / *Min) -10/Mines (discovered 2 exits: *Mat / [*Sub]) -10/Subcaves History --------- Turn | Location | Event 7 | -11/Scrapyard | Discovered new exit (range 15) 76 | -11/Scrapyard | Entered Materials 314 | -10/Materials | Build established: Mutant 437 | -10/Materials | Discovered new exit (range 14) 458 | -10/Materials | Identified exit to Materials 569 | -10/Materials | Discovered exit to Materials (range 8) 735 | -10/Materials | Core integrity fell below 50% 852 | -10/Materials | Discovered new exit (range 16) 972 | -10/Materials | Repaired Aluminum Leg 999 | -10/Materials | Repaired Lgt. Assault Rifle 1040 | -10/Materials | Discovered exit to Materials (range 8) 1590 | -10/Materials | Identified exit to Mines 1591 | -10/Materials | Entered Mines 1601 | -10/Mines | Met a Derelict bent on vengeance 1624 | -10/Mines | Met a Derelict who couldn't figure out how to use a Trap Extractor 2063 | -10/Mines | Learned location of 1 exit from Materials 2421 | -10/Mines | Discovered exit to Materials (range 8) 2525 | -10/Mines | Received a Mining Laser from a helpful Derelict 2538 | -10/Mines | Discovered new exit (range 6) 2556 | -10/Mines | Entered Subcaves 2556 | -10/Subcaves | Accompanied by 1 ally 2558 | -10/Subcaves | Shifting Twisted Machinery released Sub. Machine Gun 2576 | -10/Subcaves | Shifting Twisted Machinery released Unknown Piercing Weapon 2806 | -10/Subcaves | Core integrity fell below 20% 3183 | -10/Subcaves | Ambushed by Subdwellers from Twisted Machinery 3235 | -10/Subcaves | Build established: Subdweller-Mutant 3466 | -10/Subcaves | Learned location of Zion (-7) 3466 | -10/Subcaves | Met a Zionite searching for "candidates" 3508 | -10/Subcaves | A swath of the cavern ceiling suddenly collapsed 3710 | -10/Subcaves | Lost 3 parts (1n1u1w) 3799 | -10/Subcaves | Destroyed by QQ-DHT(R) with Subdweller Machine Gun Last Messages --------------- 03675_ Wheel destroyed. 03678_ System corrupted: Heat flow error (+175). 03679_ Battle Rifle destroyed. 03684_ Acquired 41 matter. 03685_ VX-9C6(R) suffers critical hit (Impale). 03687_ VX-9C6(R) affixes Scrap Shield Fragment to Scrap Shield. 03688_ VX-9C6(R) destroyed. 03690_ Acquired 44 matter. 03696_ Acquired Sub. Power Source. 03697_ System corrupted: Component data lost. 03697_ Dropped Broken Sub. Laser. 03702_ Acquired Sub. Machine Gun. 03710_ Acquired Disposable Heat Sink. 03712_ GDR|BDDHLBIF,D,O,MCCWGT 03713_ Acquired Sub. Optics. 03721_ Acquired Sub. Monowheel. 03749_ Acquired 55 matter. 03751_ Acquired 10 matter. 03754_ System corrupted: Matter fused (-10). Map ----- +----------------------------------------------------+ | ?????????????????????????????????????????????????? | | ??????????????????????????? ??????????????######## | | ?????????????????????????? #??????????????# # | | ????????????????????????? # ????????????# # | | ????????????????????? ?? ???????????## | | ????????????????????? ? ????????????## # | | ????????????????????? ? ??????????????# ### | | ?????????????????????&#" #?#####?????????## ### | | ???????????????????###"" ### #??????????## ## | | ??????????????????##&%"" #?# ##????###????### # | | ??????????????????# *"##### #???## ######## | | ??????????????????## #### ##### ## ## ## | | ???????????????????# ## # # # | | ???????????????????# # # # # ## # #### | | ???????????????????# " " # ### # # ### ##??? | | ???????????????????## " "" ##### #### #???? | | ????????????????????## "##""##???## ?## #???? | | ??????????????????###### #####????# ###?######???? | | ??????????????????# ##"" #???####?# #??## #####?? | | ?????### ##????#??# " #???# ### #???### #?? | | ???? ## ## #???# ## ##??## #?? | | ???? ""###???#" # ???# #?? | | ?????# #######"" ## #??## #?? | | ?????# ### # ##""""### #### #?? | | ?????## ???#### R [ "## ##?? | | ??????## ???????## @## "" #??? | | ???????# ?????????##########""# #??? | | ??????# ???????????????????####### #??? | | ??????? ???????????????????????????### ##??? | | ??????? ??????????????????????????????## #???? | | ???????????????????????????????????????## #???? | | ???????????????????????????????????????# ##???? | | ???????????????????????????????????? #????? | | ???????????????????????????????? # # ##????? | | ???????????????????????????? ## #####?????? | | ???????????????????????? ???###???????????? | | ??????????????????????? ????????????????????? | | ??????????????????????? ???????????????????????? | | ?????????????????????????????????????????????????? | | ?????????????????????????????????????????????????? | | ?????????????????????????????????????????????????? | | ?????????????????????????????????????????????????? | | ?????????????????????????????????????????????????? | | ?????????????????????????????????????????????????? | | ?????????????????????????????????????????????????? | | ????????????????????????????????????????????????## | | ????????????????????????????????????????????????# | | ?????????????????????????????????????????????#### | | ?????????????????????????????????????????????# | | ?????????????????????????????????????????????# | +----------------------------------------------------+ Best States ------------- Heat Dissipation 25 Coolant Potential 50 Energy Generation 15 Energy Capacity 250 Matter Stores 300 Matter Capacity 300 Sight Range 21 Terrain Scan Density 10 Armor Coverage 800 Evasion (%) 55 Trap Extractor Capacity 6 Item Schematics ----------------- None Robot Schematics ------------------ None Fabricated ------------ Nothing Alien Tech Used ----------------- None Achievements -------------- None Challenges ------------ None Game ------ Seed EnergyDispersionProcessor Manual? 0 Play Time 00:29:26 Cumulative 135.8 hours Start 2024.04.01 @ 15:10:01 End 2024.04.01 @ 15:36:30 Sessions 1 Manual Loads 0 Difficulty Rogue Special Mode Halloween2020/ForbiddenLore Game No. 134 Rogue 134 Adventurer 0 Explorer 0 Win Type - Total 0 Types 0/0/0/0/0/0/0/0/0 Lore% 46 Gallery% 59 Achievement% 39 Wizard Run 0 Options --------- Layout 2 ASCII 1 Keyboard 1 Movement Numpad Keybinds 0 Fullscreen 2 Font 32/TamsynBold Map View 50x44 Zoom Use 0% Tactical HUD 1 Map Filters NONE Filters NONE Steam 1 RUN: c045f28d-b904-4e7c-930f-b1a4ecac317e